Cogmind - Beta 11 @@@ ROGUE MODE // 2022.03.25 @ 12:31:36 Player: Ahren Result: Destroyed by H-61 Shepherd with Heavy Assault Cannon Performance ------------- Evolutions (2) 1000 Regions Visited (4) 800 Robots Destroyed (0) 0 Value Destroyed (0) 0 Prototype IDs (2) 40 Alien Tech Used (0) 0 Bonus (470) 470 TOTAL SCORE: 2310 Bonus ------- Pacifist 470 Cogmind --------- Core Integrity 0/550 Matter 259/300 Energy 100/100 System Corruption 3% Temperature Cool (0) Movement Core (50) Location -8/Materials Parts ------- > --- POWER (1) -------- (None) > --- PROPULSION (3) --- (None) > --- UTILITY (5) ------ Machine Analyzer > --- WEAPON (2) ------- (None) > --- INVENTORY (5) ---- VTOL Module Rocket Launcher Peak State ------------ > --- POWER ------------ Heavy Ion Engine > --- PROPULSION ------- Improved Flight Unit Cesium-ion Thruster Cesium-ion Thruster > --- UTILITY ---------- Machine Analyzer Advanced Visual Processing Unit Targeting Computer > --- WEAPON ----------- Improved Datajack > --- INVENTORY -------- VTOL Module Cesium-ion Thruster Cesium-ion Thruster Light EM Pulse Cannon Rocket Launcher [Rating: 23] Favorites ----------- Power Light Ion Engine Engine Light Ion Engine Power Core Light Nuclear Core Propulsion VTOL Module Leg Aluminum Leg Flight Unit VTOL Module Utility Targeting Computer Device Improved Terrain Scanner Storage Small Storage Unit Processor Targeting Computer Weapon Assault Rifle Energy Cannon Light EM Pulse Cannon Ballistic Gun Assault Rifle Launcher Rocket Launcher Special Melee Weapon Improved Datajack Build | -11 -10 -10 -9 -8 ------- Run | Scr Mat Min Mat Mat Slots Evolved 4 | . . . 2 2 Power . | . . . . . Propulsion 1 | . . . . 1 Utility 3 | . . . 2 1 Weapon . | . . . . . Parts Attached 32 | 7 6 9 1 9 Power 6 | 2 1 1 . 2 Engine 5 | 2 1 1 . 1 Core 1 | . . . . 1 Reactor . | . . . . . Propulsion 12 | 2 2 3 1 4 Treads . | . . . . . Leg 2 | 2 . . . . Wheel . | . . . . . Hover . | . . . . . Flight 10 | . 2 3 1 4 Utility 5 | 1 1 1 . 2 Device 1 | . . 1 . . Storage 1 | 1 . . . . Processor 3 | . 1 . . 2 Hackware . | . . . . . Protection . | . . . . . Artifact . | . . . . . Weapon 9 | 2 2 4 . 1 Energy Gun . | . . . . . Energy Cannon 4 | . 1 3 . . Ballistic Gun 3 | 2 . 1 . . Ballistic Cannon . | . . . . . Launcher 1 | . 1 . . . Special Weapon . | . . . . . Impact Weapon . | . . . . . Slashing Weapon . | . . . . . Piercing Weapon . | . . . . . Special Melee Weapon 1 | . . . . 1 Unidentified Prototypes 2 | . . . 1 1 Parts Lost 10 | . . 1 . 9 Power 3 | . . . . 3 Propulsion 5 | . . 1 . 4 Utility 1 | . . . . 1 Weapon 1 | . . . . 1 Highest Loss Streak 9 | . . 1 . 9 To Critical Strikes . | . . . . . Average Slot Usage (%) 65 | . 77 71 55 55 Engine 11 | . 14 14 11 5 Leg 4 | . 18 . . . Flight 19 | . 8 26 22 18 Storage 2 | . 11 . . . Processor 12 | . . 14 11 23 Energy Cannon 2 | . 1 5 . . Ballistic Gun 7 | . 18 2 11 1 Launcher 3 | . 2 7 . . Special Melee Weapon 1 | . . . . 6 Naked Turns . | . . . . . Heaviest Build 16 | 14 16 12 4 9 Greatest Support 20 | 20 20 8 9 15 Greatest Overweight (x) 3 | 2 3 2 . . Average Overweight (x) . | . . . . . Largest Inventory Capacity 8 | 8 8 5 5 5 Average Capacity 5 | 7 7 5 5 5 Most Carried 8 | 2 8 5 4 5 Average Carried 3 | 1 4 4 3 3 Final Capacity 8 | 8 5 5 5 5 Final Carried 5 | 2 5 3 4 2 Class Distribution -------------------- 47% | Mutant 26% | Scavenger-Mutant 25% | Sprinter Dominant Class ---------------- Mutant | -10/Materials Sprinter | -10/Mines Scavenger-Mutant | -9/Materials Mutant | -8/Materials Resources | -11 -10 -10 -9 -8 ----------- Run | Scr Mat Min Mat Mat Matter Collected 425 | 179 . 232 . 14 Remotely . | . . . . . Salvage Created 37 | . . 37 . . Parts . | . . . . . Haulers Intercepted . | . . . . . Recyclers Shooed . | . . . . . Parts Field Recycled . | . . . . . Retrieved Matter . | . . . . . Parts Self-Destructed . | . . . . . Prevented . | . . . . . Kills | -11 -10 -10 -9 -8 ------- Run | Scr Mat Min Mat Mat Combat Hostiles Destroyed 2 | . . 2 . . Cannons 2 | . . 2 . . Classes Destroyed 1 | . . 1 . . Assembled 2 | . . 2 . . Best Kill Streak 1 | . . 1 . . Combat Bots Only 1 | . . 1 . . Max Kills in Single Turn 1 | . . 1 . . Gunslinging . | . . . . . Exploded . | . . . . . Melee . | . . . . . Uniques/NPCs Destroyed . | . . . . . Combat | -11 -10 -10 -9 -8 -------- Run | Scr Mat Min Mat Mat Damage Taken 1348 | . . 265 129 954 Core 739 | . . 110 51 578 Absorbed by Shields . | . . . . . Core Remaining (%) 81 | 100 . 56 87 . Volleys Fired 9 | . . 9 . . Largest 2 | . . 2 . . Hottest 112 | . . 112 . . Shots Fired 10 | . . 10 . . Gun . | . . . . . Cannon 10 | . . 10 . . Launcher . | . . . . . Special . | . . . . . Kinetic . | . . . . . Thermal . | . . . . . Explosive . | . . . . . Electromagnetic 10 | . . 10 . . Robot Hit Streak 4 | . . 4 . . Robot Miss Streak 3 | . . 3 . . Penetration Max . | . . . . . Secondary Targets . | . . . . . Shots Hit Robots 8 | . . 6 . 2 Core Hits 2 | . . 2 . . Critical Kills . | . . . . . Critical Parts Destroyed . | . . . . . Critical Strikes . | . . . . . Melee Attacks 3 | . . . . 3 Impact . | . . . . . Slashing . | . . . . . Piercing . | . . . . . Sneak Attacks 1 | . . . . 1 Combat Hostiles . | . . . . . Follow-up Attacks . | . . . . . Damage Inflicted 118 | . . 118 . . Guns . | . . . . . Cannons 116 | . . 116 . . Explosions . | . . . . . Melee . | . . . . . Ramming 2 | . . 2 . . Kinetic . | . . . . . Thermal . | . . . . . Explosive . | . . . . . Electromagnetic 116 | . . 116 . . Impact . | . . . . . Slashing . | . . . . . Piercing . | . . . . . Highest Corruption 3 | . . . . 3 Average Corruption 3 | . . . . 3 Corruption Purged . | . . . . . Corruption Blocked . | . . . . . Overload Shots . | . . . . . Overflow Damage . | . . . . . Projectiles . | . . . . . Explosions . | . . . . . Melee . | . . . . . Knockbacks . | . . . . . Impact . | . . . . . Kinetic . | . . . . . Secondary . | . . . . . Self-Inflicted Damage 1 | . . 1 . . Shots . | . . . . . Rammed 1 | . . 1 . . Targets Rammed 1 | . . 1 . . Kicked . | . . . . . Crushed . | . . . . . Highest Temperature 80 | . . 80 6 10 Average Temperature 34 | . . 36 6 10 Received Heat Transfer 168 | . . . 51 117 Siege Activations . | . . . . . Robots Corrupted . | . . . . . Combat Hostiles . | . . . . . Parts Fried . | . . . . . Impact Corruptions . | . . . . . Robots Melted . | . . . . . Combat Hostiles . | . . . . . Parts Melted . | . . . . . Heat Transferred . | . . . . . Parts Sabotaged . | . . . . . Parts Stolen . | . . . . . Parts Stripped . | . . . . . Power Chain Reactions . | . . . . . Missiles Intercepted . | . . . . . Alert | -11 -10 -10 -9 -8 ------- Run | Scr Mat Min Mat Mat Peak Influence 379 | . . 50 189 379 Initial 79 | . . . 19 79 Average 62 | . . 25 81 172 Maximum Alert Level 1 | . . . . 1 Low Security (%) 93 | 100 100 100 100 72 Level 1 6 | . . . . 27 Level 2 . | . . . . . Level 3 . | . . . . . Level 4 . | . . . . . Level 5 . | . . . . . High Security . | . . . . . Max Security . | . . . . . Squads Dispatched 6 | . 1 . 1 4 Investigation 2 | . 1 . . 1 Extermination . | . . . . . Reinforcement 4 | . . . 1 3 Assault . | . . . . . Garrison . | . . . . . Intercept . | . . . . . Searches Triggered . | . . . . . Construction Impeded . | . . . . . Haulers Reinforced . | . . . . . Active Scanning Responses . | . . . . . Cargo Convoy Interrupts . | . . . . . Stealth | -11 -10 -10 -9 -8 --------- Run | Scr Mat Min Mat Mat Distress Signals 1 | . . . . 1 Communications Jammed . | . . . . . Distress Signals . | . . . . . Times Spotted 61 | . . 11 15 35 Peak Tracking Total 14 | . . 10 8 14 Tactical Retreats 11 | . . 3 2 6 Traps | -11 -10 -10 -9 -8 ------- Run | Scr Mat Min Mat Mat Traps Triggered 1 | . . . . 1 Indirectly . | . . . . . Trap Hack Attempts . | . . . . . Triggered . | . . . . . Disarmed . | . . . . . Reprogrammed . | . . . . . Reused . | . . . . . Traps Extracted . | . . . . . Installed . | . . . . . Triggered . | . . . . . Machines | -11 -10 -10 -9 -8 ---------- Run | Scr Mat Min Mat Mat Machines Disabled . | . . . . . Max in Single Turn . | . . . . . Machines Sabotaged . | . . . . . Garrisons Compromised . | . . . . . Overloaded Fab Kills . | . . . . . Hacking | -11 -10 -10 -9 -8 --------- Run | Scr Mat Min Mat Mat Machines Accessed 3 | . . . 1 2 Terminals 2 | . . . 1 1 Fabricators . | . . . . . Repair Stations . | . . . . . Recycling Units 1 | . . . . 1 Scanalyzers . | . . . . . Garrison Access . | . . . . . Total Hacks 11 | . . . 4 7 Successful 8 | . . . 3 5 Failed 3 | . . . 1 2 Catastrophic . | . . . . . Database Lockouts . | . . . . . Manual . | . . . . . Terminals 8 | . . . 4 4 Fabricators . | . . . . . Repair Stations . | . . . . . Recycling Units 3 | . . . . 3 Scanalyzers . | . . . . . Garrison Access . | . . . . . Terminal Hacks 7 | . . . 3 4 Record 3 | . . . . 3 Terminal Index 1 | . . . 1 . Alert Level 1 | . . . . 1 Dispatch Records 1 | . . . 1 . Hauler Manifests 1 | . . . 1 . Fabricator Hacks . | . . . . . Repair Station Hacks . | . . . . . Recycling Unit Hacks 1 | . . . . 1 Report Inventory 1 | . . . . 1 Scanalyzer . | . . . . . Garrison Access Hacks . | . . . . . Unauthorized Hacks . | . . . . . Terminals . | . . . . . Fabricators . | . . . . . Repair Stations . | . . . . . Recycling Units . | . . . . . Scanalyzers . | . . . . . Garrison Access . | . . . . . Data Cores Recovered . | . . . . . Used . | . . . . . Hacking Detections 3 | . . . 1 2 Full Trace Events 1 | . . . . 1 Feedback Events . | . . . . . Feedback Blocked . | . . . . . Robot Schematics Acquired . | . . . . . Robots Built . | . . . . . Authchips . | . . . . . Time . | . . . . . Total Robot Build Rating . | . . . . . Part Schematics Acquired . | . . . . . Parts Built . | . . . . . Authchips . | . . . . . Time . | . . . . . Total Part Build Rating . | . . . . . Parts Repaired . | . . . . . Time . | . . . . . Parts Recycled . | . . . . . Recycled Matter . | . . . . . Retrieved Matter . | . . . . . Retrieved Components . | . . . . . Parts Scanalyzed . | . . . . . Part Schematics Acquired . | . . . . . Parts Damaged . | . . . . . Bothacking | -11 -10 -10 -9 -8 ------------ Run | Scr Mat Min Mat Mat Used RIF Installer . | . . . . . Robots Hacked 1 | . . . . 1 Non-combat . | . . . . . Combat 1 | . . . . 1 Robot Hacks Applied 1 | . . . . 1 parse_system 1 | . . . . 1 Relay Couplers Released . | . . . . . Fabnet Peak Effective % . | . . . . . Robots Rewired . | . . . . . Allies Hacked . | . . . . . Hacks Repelled . | . . . . . Allies | -11 -10 -10 -9 -8 -------- Run | Scr Mat Min Mat Mat Total Allies . | . . . . . Largest Group . | . . . . . Highest-Rated Group . | . . . . . Highest-Rated Ally . | . . . . . Total Orders . | . . . . . Ally Attacks . | . . . . . Total Damage . | . . . . . Kills . | . . . . . Allies Corrupted . | . . . . . Allies Melted . | . . . . . Intel | -11 -10 -10 -9 -8 ------- Run | Scr Mat Min Mat Mat Robot Analysis Total . | . . . . . Derelict Logs Recovered 2 | . . 2 . . Drone Launches . | . . . . . Drone Recoveries . | . . . . . Exploration | -11 -10 -10 -9 -8 ------------- Run | Scr Mat Min Mat Mat Turns Passed 686 | 58 148 204 107 169 Spaces Moved 1323 | 41 184 427 267 404 Core 15 | 9 . . . 6 Treads . | . . . . . Legs 105 | 32 73 . . . Wheels . | . . . . . Hover . | . . . . . Flight 1203 | . 111 427 267 398 Fastest Speed 30 | 50 32 32 37 30 Average Speed 42 | 114 68 34 37 36 Slowest Speed 285 | 190 285 195 37 50 Overloaded Moves . | . . . . . Propulsion Burnouts . | . . . . . Robots Hopped 8 | . . . 2 6 Cave-ins Triggered . | . . . . . Exploration Rate (%) 42 | 3 44 90 33 44 Regions Visited 4 Branch Regions 1 Pre-discovered Areas 1 | . . 1 . . Known Exits Taken . | . . . . . Unknown Exits Taken 4 | 1 1 1 1 . Scrap Searched 2 | . . 2 . . Spaces Dug . | . . . . . Terrain Destroyed . | . . . . . Melee . | . . . . . Projectile . | . . . . . AOE . | . . . . . Terrain Rammed . | . . . . . Walls Destroyed . | . . . . . Machines Disabled . | . . . . . Actions | -11 -10 -10 -9 -8 --------- Run | Scr Mat Min Mat Mat Total 1423 | 48 209 474 272 420 Wait 25 | . . 19 5 1 Move 1303 | 40 183 426 262 392 Hop 8 | . . . 2 6 Pick Up 15 | 1 8 1 1 4 Fast Attach 21 | 6 4 4 1 6 Attach 8 | . 1 4 . 3 Detach 4 | . 2 2 . . Swap 3 | 1 1 1 . . Drop 23 | . 10 7 1 5 Fire 9 | . . 9 . . Melee 3 | . . . . 3 Ram 1 | . . 1 . . Kick . | . . . . . Crush . | . . . . . Escape Stasis . | . . . . . Rewire . | . . . . . Trap . | . . . . . Miscellaneous . | . . . . . Route ------- -11/Scrapyard -10/Materials (discovered 3 exits: *Mat / [*Min x2]) -10/Mines -9/Materials -8/Materials History --------- Turn | Location | Event 16 | -11/Scrapyard | Discovered new exit (range 16) 59 | -11/Scrapyard | Entered Materials 179 | -10/Materials | Discovered new exit (range 7) 179 | -10/Materials | Discovered new exit (range 3) 190 | -10/Materials | Discovered new exit (range 6) 207 | -10/Materials | Entered Mines 226 | -10/Mines | Assembled infested the area 231 | -10/Mines | Assisted by a Guerilla fighting off Assembled 302 | -10/Mines | Joined a pair of Derelicts in attacking an 0b10 outpost 341 | -10/Mines | Learned Materials interactive machine intel 389 | -10/Mines | Discovered new exit (range 4) 411 | -10/Mines | Entered Materials 411 | -9/Materials | Evolved 2 slots: Utility x2 412 | -9/Materials | Loaded intel: 17 interactive machine locations 517 | -9/Materials | Discovered new exit (range 4) 518 | -9/Materials | Entered another Materials area 518 | -8/Materials | Evolved 2 slots: Propulsion x1, Utility x1 675 | -8/Materials | Core integrity fell below 50% 685 | -8/Materials | Core integrity fell below 20% 687 | -8/Materials | Destroyed by H-61 Shepherd with Heavy Assault Cannon Last Messages --------------- No applicable chute records found in memory. 00645_ Cesium-ion Thruster destroyed. 00645_ K-01 Serf destroyed. 00645_ Knocked back. 00645_ R-06 Scavenger collects Wheel. 00646_ Acquired 9 matter. 00650_ Cesium-ion Thruster destroyed. 00662_ Targeting Computer severed. 00664_ T-07 Excavator is excavating. 00668_ Imp. Datajack destroyed. 00672_ T-07 Excavator is excavating. 00680_ Adv. Visual Processing Unit destroyed. 00680_ System corrupted by crushing effect (+3). 00680_ Knocked back. 00681_ Acquired 5 matter. 00684_ Imp. Flight Unit severed. 00684_ Triggered Alarm Trap. 00684_ An alarm sounds. 00684_ ALERT: Alarm triggered, dispatching investigation squad. 00684_ Knocked back. Map ----- +----------------------------------------------------+ | ????????# #???????????????????????????????? | | ##??????# """ #???????????????????????????????? | | ####### """""#???????????????????????????????? | | # ## # """""#???????????????????????????????? | | # """""#???????????????????????????????? | | / """ #???????????????????????????????? | | #### # #???????????????????????????????? | | ???## ###########???????????????????????????????? | | ????# # #?????????????????????"""?????????? | | ????# + T #?????????????????????"""?????????? | | "???+ # #??????????? ???"Y"???"""?????????? | | ""??# # ! #??????????? #?"""???????????????? | | ""??## # #??????????? #???????????????????? | | ""???# #= #??????????? #???????????????????? | | "????# # """ #?????????? w#???????????????????? | | ?????# # """ #?????????? #???????????????????? | | ?????# # """ #?????????? #???????????????????? | | ?????# # #?????????? +???????????????????? | | ###### # #?????????? #???????????????????? | | # ########?????????? #???????????????????? | | # ####????????????## ##??????????????????? | | ############## ####### ?????????? | | w ?????????? | | H ????????? | | # ?????????? | | # # ####### =####@ ###????????????????? | | # #######?????# #??###+###??????????????????? | | #???????##### #???????????????????????????? | | #### #???????#!! #???????????????????????????? | | ???# #???????#!! #???????????????????????????? | | ???# #???????#]] #???????????????????????????? | | ???? #???????#]] #???????????????????????????? | | ???? #???????#]] #???????????????????????????? | | ???? #???????#]] #???????????????????????????? | | ???? #???????##### #???????????????????????????? | | ???? #???????????# #???????????????????????????? | | ???? ????????????# #???????????????????????????? | | ????#????????????# #???????????????????????????? | | ?????????????????# #???????????????????????????? | | ?????????????????# #???????????????????????????? | | ?????????????????# #???????????????????????????? | | ?????????????????# ##############??????????????? | | ?????????????????# ??????????? | | ?????????????????# ####+???????????????????? | | ????############## #???????????????????????? | | #???????????????????????? | | #???????????????????????? | | #??????????????"""??????? | | ??############+####### #???????????????R"??????? | | ????????????? #??# #??????????????"""??????? | +----------------------------------------------------+ Best States ------------- Heat Dissipation 31 Energy Generation 14 Energy Capacity 280 Matter Stores 300 Matter Capacity 300 Sight Range 20 Terrain Scan Range 16 Terrain Scan Density 10 Evasion (%) 63 Targeting Accuracy 5 Item Schematics ----------------- None Robot Schematics ------------------ None Fabricated ------------ Nothing Alien Tech Used ----------------- None Achievements -------------- None Challenges ------------ None Game ------ Seed AlertShrapnelShield Manual? 0 Play Time 00:31:01 Cumulative 11.6 hours Start 2022.03.25 @ 11:10:00 End 2022.03.25 @ 12:31:36 Sessions 1 Manual Loads 0 Difficulty Rogue Special Mode None Game No. 11 Rogue 11 Adventurer 0 Explorer 0 Win Type - Total 0 Types 0/0/0/0/0/0/0/0/0 Lore% 17 Gallery% 19 Achievement% 16 Wizard Run 0 Options --------- ASCII 0 Keyboard 0 Movement Numpad Keybinds 0 Fullscreen 2 Font 24/Smallcaps Map View 76x50 Tactical HUD 1 Map Filters NONE Filters NONE Steam 1 RUN: fb000e3f-f224-4a15-8ac0-9c4a7e3bd507